fUSD/lending_fUSD_20240502
["ID","MTS","AMOUNT","RATE_DAILY","PERIOD"]
[325251022,1714651293530,-150.0,0.00010999,2]
[325251023,1714651295349,1211.68556772,0.00010977,2]
[325251024,1714651338361,-71526.93124243,0.00011,2]
[325251027,1714651831881,-612.1115,0.00010619,2]
[325251028,1714651831996,-420.0,0.00010619,2]
[325251029,1714651832009,-2466.948257,0.00010619,2]
[325251030,1714651832020,-498.23703251,0.00010673,2]
[325251031,1714651832030,-155.0,0.00010674,2]
[325251032,1714651832040,-8491.77028691,0.00010674,2]
[325251033,1714651832075,-2317.5590034,0.00010674,2]
[325251034,1714651832101,-2708.4,0.00010674,2]
[325251035,1714651832114,-5939.53559736,0.00010674,2]
[325251036,1714651832124,-198.21300264,0.000109,2]
[325251037,1714651832151,-300.33,0.000109,2]
[325251038,1714651832185,-76.00849736,0.000109,2]
[325251039,1714651832195,-2363.7316142,0.00010999,2]
[325251040,1714651832204,-463.32049506,0.00011,2]
[325251070,1714651837841,-306.33871259,0.00011,2]
[325251078,1714651837911,-1361.38810535,0.00011,2]
[325251080,1714651837977,-55505.55393243,0.00011,2]
[325251081,1714651838041,-416.71312926,0.00011,2]
[325251082,1714651838106,-43179.11134463,0.00011,2]
[325251086,1714651839865,-2707.93359867,0.00011,2]
[325251087,1714651839926,-761.35727765,0.00011,2]
[325251088,1714651839937,-712.54449098,0.00011,2]
[325251089,1714651839988,-1203.72264009,0.00011,2]
[325251090,1714651840163,-267.58229985,0.00011,2]
[325251091,1714651840175,-298.97,0.00011,2]
[325251092,1714651840187,-275.455328,0.00011,2]
[325251093,1714651840224,-818.03842971,0.00011,2]
[325251094,1714651840287,-457.67964274,0.00011,2]
[325251096,1714651841197,-87273.80335238,0.00011,2]
[325251097,1714651841213,-14469.56909091,0.00011,2]
[325251098,1714651841228,-4659.79216781,0.00011,2]
[325251112,1714651842941,-622.9468,0.00011,2]
[325251119,1714651843012,-594.62898012,0.00011,2]
[325251120,1714651843076,-3522.75977436,0.00011,2]
[325251121,1714651843137,-28523.21512648,0.00011,2]
[325251122,1714651843266,-650.65,0.00011,2]
[325251125,1714651843914,-293.774,0.00011,2]
[325251129,1714651845860,-959.60639431,0.00011,2]
[325251130,1714651845985,-393.19772923,0.00011,2]
[325251131,1714651845997,-455.44261986,0.00011,2]
[325251132,1714651846050,-15049.9999999,0.00011,2]
[325251133,1714651846117,-1089.19878877,0.00011,2]
[325251252,1714652748736,2543.27176698,8.25e-05,2]
[325251253,1714652764678,2543.27176698,8.25e-05,2]
[325251256,1714652786687,2543.27176698,6.188e-05,2]
[325251257,1714652802714,2543.27176698,6.188e-05,2]
[325251258,1714652826688,2543.27176698,6.188e-05,2]
[325251259,1714652848679,2543.27176698,4.641e-05,2]
[325251260,1714652860177,250.36936653,0.00010149,2]
[325251262,1714652871477,2543.27176698,4.641e-05,2]
[325251263,1714652890731,1724.58052123,4.641e-05,2]
[325251264,1714652912681,2542.94349552,3.481e-05,2]
[325251269,1714652952703,2543.27176698,2.611e-05,2]
[325251270,1714652966695,2543.27176698,2.611e-05,2]
[325251271,1714652967121,5740.17,0.00010171,2]
[325251272,1714652988734,2543.27176698,2.611e-05,2]
[325251273,1714653012847,1573.75898944,2e-05,2]
[325251284,1714653032286,-2217.32024188,0.00010375,2]
[325251285,1714653032295,-372.76375672,0.00010375,2]
[325251286,1714653032392,-269.29030288,0.00010375,2]
[325251287,1714653032402,-498.23703251,0.00010376,2]
[325251288,1714653032411,-536.43102473,0.00010377,2]
[325251289,1714653032420,-31.32380037,0.00010377,2]
[325251290,1714653032506,-283.63500843,0.00010377,2]
[325251291,1714653032519,-49.14046615,0.00010377,2]
[325251292,1714653032529,-150.0,0.00010378,2]
[325251293,1714653032539,-1778.14775228,0.00010378,2]
[325251294,1714653032550,-155.0,0.00010378,2]
[325251295,1714653032560,-60.78432251,0.00010378,2]
[325251296,1714653032572,-348.02716393,0.00010378,2]
[325251297,1714653032582,-604.0,0.0001038,2]
[325251298,1714653032594,-192.82,0.00010386,2]
[325251299,1714653032603,-151.44,0.00010505,2]
[325251300,1714653032612,-200.0,0.00010544,2]
[325251301,1714653032622,-1560.03868352,0.0001077,2]
[325251302,1714653032632,-3497.19944605,0.00010817,2]
[325251303,1714653032641,-427.38,0.00010836,2]
[325251304,1714653032650,-37007.86185421,0.0001089,2]
[325251305,1714653032659,-151.89719,0.0001089,2]
[325251306,1714653032669,-1389.43622268,0.00010942,2]
[325251307,1714653032678,-264.3,0.00010943,2]
[325251308,1714653032687,-1135.55,0.0001095,2]
[325251309,1714653032698,-6045.56,0.00010959,2]
[325251310,1714653032707,-13881.57695022,0.00010986,2]
[325251311,1714653032723,-12391.14808153,0.00010986,2]
[325251312,1714653032750,-1064.71783951,0.00010986,2]
[325251313,1714653032762,-253.083484,0.00010986,2]
[325251316,1714653038178,-3168.71929079,0.00010374,2]
[325251317,1714653038188,-4622.57286036,0.00010986,2]
[325251318,1714653038201,-484.11147306,0.00010986,2]
[325251319,1714653038294,-23016.81129213,0.00010986,2]
[325251320,1714653038304,-499.99,0.00010986,2]
[325251321,1714653038313,-12867.91392025,0.00011,2]
[325251322,1714653038323,-1500.0,0.00011246,2]
[325251323,1714653038332,-1206.77,0.00011323,2]
[325251324,1714653038341,-265.12,0.00011345,2]
[325251325,1714653038351,-415.36,0.00011494,2]
[325251326,1714653038360,-250.0,0.00011646,2]
[325251327,1714653038370,-108134.1336,0.00011699,2]
[325251328,1714653038382,-1000.0,0.000117,2]
[325251329,1714653038391,-1876.3588,0.000117,2]
[325251330,1714653038400,-5105.8178,0.000117,2]
[325251331,1714653038409,-25737.7638,0.000117,2]
[325251332,1714653038418,-3053.82234309,0.000117,2]
[325251333,1714653038431,-1178.73716602,0.000117,2]
[325251337,1714653040192,-875.05864174,0.000117,2]
[325251338,1714653040223,-2392.38184915,0.000117,2]
[325251339,1714653040234,-158.92852532,0.000117,2]
[325251340,1714653040243,-2231.98446726,0.00011787,2]
[325251341,1714653040252,-377.95472593,0.00011798,2]
[325251342,1714653040262,-798.36371552,0.00011798,2]
[325251343,1714653040271,-341.44855021,0.00011798,2]
[325251344,1714653040281,-170.13823566,0.00011798,2]
[325251345,1714653040291,-155.74584434,0.00011798,2]
[325251346,1714653040301,-155.50200221,0.00011798,2]
[325251347,1714653040311,-169.29689086,0.00011798,2]
[325251348,1714653040321,-308.29578336,0.00011798,2]
[325251349,1714653040330,-1244.4085051,0.00011798,2]
[325251350,1714653040340,-195.43665581,0.00011798,2]
[325251351,1714653040350,-4746.33624396,0.00011798,2]
[325251352,1714653040360,-286.67348432,0.00011798,2]
[325251353,1714653040370,-404.63624969,0.00011798,2]
[325251354,1714653040384,-297.98372073,0.00011798,2]
[325251355,1714653040393,-178.5680505,0.00011798,2]
[325251356,1714653040403,-155.0,0.00011798,2]
[325251357,1714653040414,-262.0516888,0.00011798,2]
[325251358,1714653040423,-156.21566749,0.00011798,2]
[325251359,1714653040433,-307.80802555,0.00011798,2]
[325251360,1714653040444,-685.5415704,0.00011798,2]
[325251361,1714653040456,-245.2104296,0.00011798,2]
[325251362,1714653040466,-2216.26019612,0.00011798,2]
[325251363,1714653040478,-235.69826919,0.00011798,2]
[325251364,1714653040488,-324.54761335,0.00011798,2]
[325251365,1714653040498,-265.50698915,0.00011798,2]
[325251366,1714653040508,-243.60508632,0.00011798,2]
[325251367,1714653040518,-2356.23677028,0.00011798,2]
[325251368,1714653040528,-353.73333574,0.00011798,2]
[325251369,1714653040537,-289.02835378,0.00011798,2]
[325251370,1714653040547,-321.57373127,0.00011798,2]
[325251371,1714653040556,-168.95647242,0.00011798,2]
[325251372,1714653040566,-184.77312789,0.00011799,2]
[325251373,1714653040577,-156.02233542,0.00011799,2]
[325251374,1714653040588,-32867.45356662,0.00011799,2]
[325251375,1714653040597,-231.9706,0.000118,2]
[325251376,1714653040606,-216288.68052416,0.000118,2]
[325251377,1714653040619,-12281.394,0.000118,2]
[325251378,1714653040639,-866.57163133,0.000118,2]
[325251379,1714653040764,-15563.35384451,0.000118,2]
[325251380,1714653040774,-3962.4101,0.000118,2]
[325251381,1714653040784,-17538.1256,0.000118,2]
[325251382,1714653040793,-25660.1823,0.000118,2]
[325251384,1714653040803,-73291.3308,0.000118,2]
[325251385,1714653040812,-187929.79662522,0.000119,2]
[325251386,1714653040821,-300.0,0.000119,4]
[325251387,1714653040832,-787.48504734,0.00012,2]
[325251388,1714653040841,-9197.2538822,0.00012348,7]
[325251389,1714653040850,-265.12,0.00012763,2]
[325251390,1714653040859,-463.76718743,0.00012868,2]
[325251391,1714653040868,-600.0,0.000129,4]
[325251392,1714653040880,-415.36,0.0001293,2]
[325251393,1714653040889,-328.98309878,0.00012998,2]
[325251394,1714653040913,-1000.0,0.00012998,2]
[325251395,1714653040923,-1211.30074394,0.00012998,2]
[325251396,1714653040934,-571.01966468,0.00012999,7]
[325251397,1714653040944,-11427.55860354,0.00012999,2]
[325251398,1714653040954,-336375.31431917,0.00013,2]
[325251399,1714653040964,-208440.35024059,0.00013,2]
[325251400,1714653040975,-151.0,0.00013,2]
[325251401,1714653040985,-155.665933,0.00013,2]
[325251402,1714653040995,-237.92705,0.00013,2]
[325251403,1714653041005,-166.174023,0.00013,2]
[325251404,1714653041019,-151.0,0.00013,2]
[325251405,1714653041028,-151.44,0.00013132,2]
[325251406,1714653041038,-151.8972,0.0001339,2]
[325251407,1714653041048,-500.0,0.00013699,2]
[325251408,1714653041059,-200.0,0.00013699,2]
[325251409,1714653041068,-17816.0,0.00014,2]
[325251410,1714653041078,-265.12,0.00014181,2]
[325251411,1714653041088,-415.36,0.00014367,2]
[325251412,1714653041098,-151.0,0.00014467,2]
[325251413,1714653041108,-191.03468,0.00014467,2]
[325251414,1714653041118,-151.0,0.00014467,2]
[325251415,1714653041130,-1968.20365209,0.00015,2]
[325251416,1714653041140,-182.7,0.00015321,2]
[325251417,1714653041150,-192.82,0.00015579,2]
[325251418,1714653041160,-265.12,0.00015599,2]
[325251419,1714653041170,-151.44,0.00015758,2]
[325251420,1714653041180,-415.36,0.00015804,2]
[325251421,1714653041190,-151.8972,0.0001589,2]
[325251422,1714653041200,-265.12,0.00017017,2]
[325251423,1714653041211,-415.36,0.0001724,2]
[325251424,1714653041221,-5895.0,0.000173,2]
[325251425,1714653041231,-151.0,0.000173,2]
[325251426,1714653041240,-450.0,0.00018,3]
[325251427,1714653041250,-151.8972,0.0001839,2]
[325251428,1714653041260,-2000.0,0.0002,15]
[325251429,1714653041271,-6225.05311581,0.0002,2]
[325251430,1714653041281,-500.0,0.0002,3]
[325251431,1714653041291,-151.89719,0.0002089,2]
[325251432,1714653041301,-155.0,0.000209,2]
[325251433,1714653041311,-871.098,0.00021165,2]
[325251434,1714653041320,-223.510696,0.00021249,2]
[325251435,1714653041331,-663.08,0.00021644,2]
[325251436,1714653041340,-34103.61516134,0.00021644,2]
[325251437,1714653041350,-6755.24293226,0.000219,2]
[325251438,1714653041360,-200.0,0.000219,2]
[325251439,1714653041370,-2000.0,0.00021918,2]
[325251440,1714653041383,-250.0,0.00021918,2]
[325251441,1714653041393,-550.0,0.00022,3]
[325251442,1714653041403,-182.7,0.00022982,2]
[325251443,1714653041413,-17686.94369324,0.00023,2]
[325251444,1714653041423,-151.8972,0.0002339,2]
[325251445,1714653041433,-1999.89651016,0.000234,2]
[325251446,1714653041442,-155.0,0.0002375,2]
[325251447,1714653041452,-431.95467805,0.00024,2]
[325251448,1714653041461,-600.0,0.00024,3]
[325251449,1714653041470,-984.92,0.00024657,2]
[325251450,1714653041480,-572.77425807,0.00025,7]
[325251451,1714653041490,-471.2169433,0.00025,2]
[325251452,1714653041499,-2606.85980791,0.00025,2]
[325251453,1714653041513,-167.56442339,0.00025,2]
[325251454,1714653041524,-1036.73785114,0.00025,2]
[325251455,1714653041534,-37393.75485043,0.00025,2]
[325251456,1714653041545,-293.29822192,0.00025,2]
[325251457,1714653041555,-258.17625557,0.00025,2]
[325251458,1714653041564,-2212.20569301,0.00025,2]
[325251459,1714653041574,-500.0,0.00025,2]
[325251460,1714653041584,-1041.0025071,0.00025,2]
[325251461,1714653041594,-443.481164,0.00025,2]
[325251462,1714653041603,-650.0,0.00026,3]
[325251463,1714653041613,-984.92,0.00026027,4]
[325251464,1714653041623,-643.69,0.00026372,2]
[325251465,1714653041635,-155.196431,0.00026372,30]
[325251466,1714653041644,-1739.53742045,0.00027,2]
[325251467,1714653041654,-300.0,0.00027397,2]
[325251468,1714653041663,-984.92,0.00027397,6]
[325251469,1714653041673,-156.51,0.00027397,2]
[325251470,1714653041682,-663.08,0.00027714,2]
[325251471,1714653041693,-700.0,0.00028,3]
[325251472,1714653041703,-156.51,0.00028253,2]
[325251473,1714653041713,-984.92,0.00028767,9]
[325251474,1714653041723,-563.78410782,0.00029,2]
[325251475,1714653041732,-156.51,0.0002911,2]
[325251476,1714653041743,-156.51,0.00029966,2]
[325251477,1714653041752,-19342.27079902,0.0003,4]
[325251478,1714653041762,-5675.33834492,0.0003,2]
[325251479,1714653041772,-2499.33914115,0.0003,2]
[325251480,1714653041782,-1385.7943526,0.0003,60]
[325251481,1714653041792,-774.05040688,0.0003,4]
[325251482,1714653041802,-750.0,0.0003,3]
[325251483,1714653041812,-300.0,0.00030136,2]
[325251484,1714653041822,-984.92,0.00030136,11]
[325251485,1714653041832,-180.0,0.00030258,2]
[325251486,1714653041842,-176.0,0.00030317,5]
[325251487,1714653041851,-156.51,0.00030822,2]
[325251488,1714653041861,-984.92,0.00031506,13]
[325251489,1714653041871,-956.14296665,0.00031668,3]
[325251490,1714653041882,-156.51,0.00031678,2]
[325251491,1714653041893,-342.33495938,0.00031769,2]
[325251492,1714653042195,-1182.25196097,0.00031769,2]
[325251493,1714653042206,-811.11315378,0.00031769,2]
[325251494,1714653042216,-332.59159891,0.00032,4]
[325251495,1714653042226,-800.0,0.00032,3]
[325251496,1714653042237,-956.14296664,0.00032189,4]
[325251497,1714653042248,-156.51,0.00032534,2]
[325251498,1714653042259,-956.14296664,0.0003271,4]
[325251499,1714653042270,-403.75622243,0.00032876,2]
[325251500,1714653042281,-984.92,0.00032876,15]
[325251501,1714653042291,-956.14296664,0.00033231,5]
[325251502,1714653042302,-156.51,0.0003339,2]
[325251503,1714653042312,-956.14296664,0.00033752,5]
[325251504,1714653042322,-663.08,0.00033785,2]
[325251505,1714653042332,-984.92,0.00034246,17]
[325251506,1714653042343,-156.51,0.00034247,2]
[325251507,1714653042352,-956.14296664,0.00034273,6]
[325251508,1714653042362,-1115.36195965,0.00034502,4]
[325251509,1714653042372,-956.14296664,0.00034795,7]
[325251510,1714653042385,-900.0,0.000349,12]
[325251511,1714653042396,-50000.0,0.00035,15]
[325251512,1714653042407,-50000.0,0.00035,25]
[325251513,1714653042418,-29208.99476558,0.00035,4]
[325251514,1714653042428,-155.0,0.00035,15]
[325251515,1714653042439,-151.0,0.00035,7]
[325251516,1714653042450,-151.0,0.00035,7]
[325251517,1714653042460,-156.51,0.00035103,2]
[325251518,1714653042470,-956.14296664,0.00035316,7]
[325251519,1714653042480,-984.92,0.00035616,19]
[325251520,1714653042491,-956.14296664,0.00035837,8]
[325251521,1714653042501,-669.88517726,0.0003584,10]
[325251522,1714653042511,-156.51,0.00035959,2]
[325251523,1714653042522,-50000.0,0.00036,16]
[325251524,1714653042533,-994.57629345,0.00036,26]
[325251525,1714653042549,-49005.42370655,0.00036,26]
[325251526,1714653042560,-1200.0,0.000363,13]
[325251527,1714653042571,-956.14296664,0.00036358,9]
[325251528,1714653042581,-1500.0,0.000364,13]
[325251529,1714653042591,-515.691039,0.00036421,120]
[325251530,1714653042600,-2500.0,0.00036438,2]
[325251531,1714653042611,-2500.0,0.00036438,2]
[325251532,1714653042620,-2500.0,0.00036438,2]
[325251533,1714653042631,-2500.0,0.00036438,2]
[325251534,1714653042640,-2500.0,0.00036438,2]
[325251535,1714653042650,-2500.0,0.00036438,2]
[325251536,1714653042659,-2500.0,0.00036438,2]
[325251537,1714653042668,-2500.0,0.00036438,2]
[325251538,1714653042678,-2500.0,0.00036438,2]
[325251539,1714653042687,-2500.0,0.00036438,2]
[325251540,1714653042697,-175.53350787,0.00036438,2]
[325251541,1714653042706,-300.0,0.000365,13]
[325251542,1714653042715,-500.0,0.00036504,3]
[325251543,1714653042724,-500.0,0.00036504,3]
[325251544,1714653042733,-500.0,0.00036504,3]
[325251545,1714653042742,-500.0,0.00036504,3]
[325251546,1714653042751,-500.0,0.00036504,3]
[325251547,1714653042761,-500.0,0.00036504,3]
[325251548,1714653042770,-300.0,0.000366,13]
[325251549,1714653042779,-300.0,0.000367,13]
[325251550,1714653042789,-2500.0,0.00036712,2]
[325251551,1714653042799,-967.01,0.00036712,2]
[325251552,1714653042808,-300.0,0.000368,13]
[325251553,1714653042818,-156.51,0.00036815,2]
[325251554,1714653042827,-956.14296664,0.00036879,9]
[325251555,1714653042836,-504.0,0.000369,13]
[325251556,1714653042846,-948.51352168,0.000369,2]
[325251557,1714653042855,-179041.55976739,0.00036984,7]
[325251558,1714653042887,-96789.33624704,0.00036984,7]
[325251559,1714653042902,-814.67002822,0.00036984,7]
[325251560,1714653042914,-269.37766517,0.00036984,7]
[325251561,1714653042937,-2900.0,0.00036984,7]
[325251563,1714653042975,-725.08956454,0.00036984,7]
[325251565,1714653042988,-1545.88121157,0.00036984,7]
[325251610,1714653043702,-594.9441997,0.00011798,2]
[325251612,1714653043712,-6363.92717177,0.00036984,7]
[325251613,1714653043724,-656.35,0.00036984,7]
[325251614,1714653043735,-33366.66878404,0.00036984,7]
[325251618,1714653043747,-929.283,0.00036984,7]
[325251627,1714653044234,-299.80837801,0.00036984,7]
[325251628,1714653044308,-301.149224,0.00036984,7]
[325251650,1714653046195,-1485.425,0.00017259,2]
[325251651,1714653046207,-609.88528964,0.00017259,2]
[325251652,1714653046218,-498.23703251,0.00017259,2]
[325251653,1714653046228,-41986.39977451,0.00036984,7]
[325251654,1714653046239,-31715.73820004,0.00036984,7]
[325251655,1714653046252,-62013.51984336,0.00036984,7]
[325251656,1714653046263,-300348.17977814,0.00036984,7]
[325251657,1714653046275,-58916.13056384,0.00036984,7]
[325251658,1714653046287,-51954.433,0.00036984,7]
[325251659,1714653046856,-4260536.79243828,0.00036984,7]
[325251660,1714653046866,-984.92,0.00036986,21]
[325251661,1714653046876,-151.0,0.00036999,7]
[325251662,1714653046889,-300.0,0.00036999,3]
[325251663,1714653046898,-300.0,0.00036999,5]
[325251664,1714653046908,-151.0,0.00036999,7]
[325251665,1714653046917,-257277.93558956,0.00036999,9]
[325251667,1714653047794,-409.3627487,0.00036999,9]
[325251668,1714653048124,-2272.4580748,0.00036999,9]
[325251669,1714653048140,-10000.0,0.00036999,9]
[325251670,1714653048153,-371.88291753,0.00036999,9]
[325251671,1714653048164,-1324.8,0.00036999,9]
[325251672,1714653048176,-2072.94766162,0.00036999,9]
[325251673,1714653048188,-208678.27418409,0.00036999,9]
[325251674,1714653048200,-1745.62330836,0.00036999,9]
[325251675,1714653048212,-2819.04696,0.00036999,9]
[325251676,1714653048224,-1504.0,0.00036999,9]
[325251677,1714653048235,-7527.34457584,0.00036999,9]
[325251678,1714653048258,-15005.00000005,0.00036999,9]
[325251679,1714653048277,-319.50316463,0.00036999,9]
[325251680,1714653048294,-6561.23247747,0.00036999,9]
[325251681,1714653048307,-719.84129831,0.00036999,9]
[325251712,1714654231467,-305.0,0.00011599,2]
[325251713,1714654231526,-100.7177,0.00011599,2]
[325251714,1714654231543,-212.76330007,0.000117,2]
[325251715,1714654231562,-3100.0,0.000117,2]
[325251716,1714654231698,-12391.85576357,0.000117,2]
[325251717,1714654231778,-480.55860352,0.000117,2]
[325251718,1714654231798,-1896.47673284,0.000117,2]
[325251719,1714654231813,-1053.0314,0.000117,2]
[325251720,1714654231828,-19636.52725699,0.000117,2]
[325251721,1714654231846,-4297.68014301,0.000117,2]
[325251722,1714654231861,-412.80170973,0.00017258,2]
[325251723,1714654231876,-1643.54552428,0.00017258,2]
[325251728,1714654231917,-132.5750387,0.00017258,2]
[325251730,1714654231926,-385.2149613,0.00017258,2]
[325251732,1714654231938,-255.9463983,0.00017258,2]
[325251734,1714654231947,-304.16279197,0.000173,2]
[325251798,1714654237674,-805.83720803,0.000173,2]
[325251799,1714654237684,-450.0,0.00018,3]
[325251800,1714654237694,-2000.0,0.0002,15]
[325251801,1714654237703,-500.0,0.0002,3]
[325251802,1714654237713,-550.0,0.00022,3]
[325251803,1714654237723,-6755.24293226,0.00022999,2]
[325251804,1714654237732,-438.92035346,0.00023,2]
[325251805,1714654237749,-547.05693501,0.00023,2]
[325251806,1714654237761,-318.74300213,0.00023,2]
[325251807,1714654237773,-272.97766749,0.00023,2]
[325251808,1714654237785,-3891.06976475,0.00023,2]
[325251809,1714654237797,-12218.1759704,0.00023,2]
[325251810,1714654237807,-1999.89651016,0.000234,2]
[325251811,1714654237816,-541.0,0.00023555,2]
[325251812,1714654237825,-258.058,0.00023555,2]
[325251813,1714654237835,-600.0,0.00024,3]
[325251814,1714654237845,-431.95467805,0.00024,2]
[325251815,1714654237855,-2606.85980791,0.00025,2]
[325251816,1714654237864,-650.0,0.00026,3]
[325251817,1714654237874,-1739.53742045,0.00029899,2]
[325251818,1714654237884,-3100.0,0.000299,2]
[325251819,1714654237894,-774.05040688,0.0003,4]
[325251820,1714654237904,-5483.46720617,0.0003,4]
[325251821,1714654238038,-13858.80359285,0.0003,4]
[325251822,1714654238048,-5675.33834492,0.00030864,2]
[325251823,1714654238058,-250.0,0.00030867,2]
[325251824,1714654238069,-1690.9159269,0.00031198,2]
[325251825,1714654238081,-309.0840731,0.00031198,2]
[325251826,1714654238091,-250.0,0.00031228,2]
[325251827,1714654238101,-442.58,0.00031389,2]
[325251828,1714654238111,-442.58,0.00031475,2]
[325251832,1714654238400,-665.77065112,0.00031486,2]
[325251833,1714654238418,-3140.21934888,0.00031486,2]
[325251834,1714654238428,-442.58,0.00031561,2]
[325251835,1714654238437,-442.58,0.00031648,2]
[325251836,1714654238447,-442.58,0.00031734,2]
[325251837,1714654238456,-442.58,0.0003182,2]
[325251838,1714654238465,-442.58,0.00031906,2]
[325251839,1714654238475,-154.08,0.00031913,2]
[325251840,1714654238484,-442.58,0.00031992,2]
[325251841,1714654238494,-332.59159891,0.00032077,4]
[325251842,1714654238503,-442.58,0.00032078,2]
[325251843,1714654238512,-368.12159258,0.00032132,2]
[325251844,1714654238524,-131.87840742,0.00032132,2]
[325251845,1714654238534,-442.58,0.00032164,2]
[325251846,1714654238543,-200.0,0.00032195,2]
[325251847,1714654238552,-132.9628293,0.0003225,2]
[325251848,1714654238564,-309.6171707,0.0003225,2]
[325251849,1714654238574,-0.20861665,0.00032336,2]
[325251850,1714654238586,-442.37138335,0.00032336,2]
[325251851,1714654238595,-442.58,0.00032422,2]
[325251852,1714654238606,-442.58,0.00032508,2]
[325251853,1714654238615,-175.85,0.00032587,2]
[325251854,1714654238625,-442.58,0.00032594,2]
[325251855,1714654238635,-442.58,0.0003268,2]
[325251856,1714654238645,-442.58,0.00032767,2]
[325251857,1714654238656,-206.55506001,0.00032839,2]
[325251858,1714654238666,-442.58,0.00032853,2]
[325251859,1714654238677,-1388.71856758,0.00032875,4]
[325251860,1714654238686,-1500.0,0.00032894,2]
[325251861,1714654238695,-150.37,0.00032917,120]
[325251862,1714654238705,-442.58,0.00032939,2]
[325251863,1714654238715,-442.58,0.00033025,2]
[325251864,1714654238724,-192.81,0.000332,2]
[325251865,1714654238734,-154.08,0.00034227,2]
[325251866,1714654238743,-150.0,0.00034548,10]
[325251867,1714654238753,-565.8337,0.000349,3]
[325251868,1714654238763,-2156.6857,0.000349,2]
[325251869,1714654238772,-7813.08598906,0.00035,4]
[325251870,1714654238784,-16175.8696579,0.00035,4]
[325251871,1714654238796,-252.69726318,0.00035,4]
[325251872,1714654238874,-4785.89749223,0.00035,4]
[325251873,1714654238886,-181.44436321,0.00035,4]
[325251874,1714654238896,-155.0,0.00035135,60]
[325251875,1714654238905,-515.691039,0.00035149,120]
[325251876,1714654238915,-180.0,0.00035301,2]
[325251877,1714654238924,-975.87973664,0.00035537,4]
[325251878,1714654238933,-669.88517726,0.00035999,10]
[325251879,1714654238942,-5000.0,0.00036,14]
[325251880,1714654238952,-5244.19554992,0.00036184,2]
[325251881,1714654238961,-2500.0,0.00036438,2]
[325251882,1714654238970,-352.49,0.00036438,2]
[325251883,1714654238980,-154.08,0.00036541,2]
[325251884,1714654238989,-1560.03868352,0.00036567,2]
[325251885,1714654239000,-3497.19944605,0.00036678,2]
[325251886,1714654239009,-1000.0,0.00036897,2]
[325251887,1714654239018,-1774.3739,0.00036897,2]
[325251888,1714654239028,-500.0,0.00036899,2]
[325251889,1714654239037,-460.94906508,0.00036984,2]
[325251890,1714654239046,-156.18,0.00036989,2]
[325251891,1714654239055,-4092.09,0.00036989,10]
[325251892,1714654239064,-507.73554119,0.00036997,4]
[325251893,1714654239074,-492.08598769,0.00036997,4]
[325251894,1714654239083,-1255.94272961,0.00036997,4]
[325251895,1714654239092,-1000.0,0.00036997,4]
[325251896,1714654239101,-554.47384209,0.00036997,7]
[325251897,1714654239112,-2499.33914115,0.00036997,2]
[325251898,1714654239122,-155.0,0.00036997,15]
[325251899,1714654239131,-1306.22125359,0.00036997,4]
[325251900,1714654239141,-315.2417905,0.00036997,4]
[325251901,1714654239151,-17398.32960918,0.00036997,4]
[325251902,1714654239161,-500.0,0.00036998,2]
[325251903,1714654239171,-187.02356562,0.00036998,4]
[325251904,1714654239182,-595.84801306,0.00036999,2]
[325251905,1714654239191,-164.05998848,0.00036999,2]
[325251906,1714654239201,-394.06670891,0.00036999,4]
[325251907,1714654239210,-1398.65979841,0.00036999,4]
[325251908,1714654239220,-225.13454198,0.00036999,30]
[325251909,1714654239230,-2972.25333034,0.00036999,4]
[325251910,1714654239240,-155.0,0.00036999,2]
[325251911,1714654239250,-1392.92993436,0.00036999,4]
[325251912,1714654239260,-50241.12935759,0.00036999,2]